Cogmind - Beta 15 @@@ ROGUE MODE // 2025.10.13 @ 23:44:58 Player: NQH Result: Destroyed self via exploding Nuclear Reactor Performance ------------- Evolutions (1) 500 Regions Visited (2) 400 Robots Destroyed (20) 100 Value Destroyed (589) 589 Prototype IDs (0) 0 Alien Tech Used (0) 0 Bonus (200) 200 TOTAL SCORE: 1789 Bonus ------- Pacifist 200 Cogmind --------- Core Integrity 0/400 Matter 281/300 Energy 100/100 System Corruption 0% Temperature Cool (0) Movement Flying (37) Location -9/Materials Parts ------- > --- POWER (1) -------- (None) > --- PROPULSION (2) --- Flight Unit Flight Unit > --- UTILITY (4) ------ Visual Processing Unit Advanced Visual Processing Unit > --- WEAPON (2) ------- Great Maul > --- INVENTORY (5) ---- Small Storage Unit Light Assault Rifle Heavy Assault Rifle Peak State ------------ > --- POWER ------------ Ion Engine > --- PROPULSION ------- Improved Hover Unit Improved Hover Unit > --- UTILITY ---------- Visual Processing Unit Advanced Visual Processing Unit Improved Light Armor Plating Improved Light Armor Plating > --- WEAPON ----------- Heavy Assault Rifle Great Maul > --- INVENTORY -------- Light Ion Engine Flight Unit Flight Unit Small Storage Unit [Rating: 21] Favorites ----------- Power Light Ion Engine Engine Light Ion Engine Propulsion Flight Unit Hover Unit Improved Hover Unit Flight Unit Flight Unit Utility Visual Processing Unit Device ECM Suite Processor Visual Processing Unit Protection Improved Light Armor Plating Weapon Light Assault Rifle Energy Gun Small Laser Ballistic Gun Light Assault Rifle Impact Weapon Great Maul Build | -11 -10 -9 ------- Run | Yrd Mat Mat Slots Evolved 2 | . . 2 Power . | . . . Propulsion . | . . . Utility 2 | . . 2 Weapon . | . . . Parts Attached 24 | . 3 21 Power 4 | . . 4 Engine 4 | . . 4 Core . | . . . Reactor . | . . . Propulsion 7 | . 1 6 Treads . | . . . Leg . | . . . Wheel . | . . . Hover 2 | . . 2 Flight 5 | . 1 4 Utility 6 | . 2 4 Device 1 | . . 1 Storage . | . . . Processor 2 | . 1 1 Hackware . | . . . Protection 3 | . 1 2 Artifact . | . . . Weapon 7 | . . 7 Energy Gun 2 | . . 2 Energy Cannon . | . . . Ballistic Gun 4 | . . 4 Ballistic Cannon . | . . . Launcher . | . . . Special Weapon . | . . . Impact Weapon 1 | . . 1 Slashing Weapon . | . . . Piercing Weapon . | . . . Special Melee Weapon . | . . . Unidentified Prototypes . | . . . Parts Lost 14 | . . 14 Power 4 | . . 4 Propulsion 5 | . . 5 Utility 3 | . . 3 Weapon 2 | . . 2 Highest Loss Streak 5 | . . 5 To Critical Strikes . | . . . Average Backups 4 | 2 4 4 Power 1 | 1 2 1 Propulsion 1 | . . 1 Utility . | . 1 1 Weapon . | . 1 . Tool/Special . | . . . Unused Backups 4 | 2 . 2 Power . | . . . Propulsion 1 | . . 1 Utility 1 | . . 1 Weapon 2 | 2 . . Tool/Special . | . . . Average Slot Usage (%) 59 | . 6 67 Engine 7 | . . 8 Hover 5 | . . 6 Flight 9 | . 1 11 Processor 13 | . . 15 Protection 11 | . 4 12 Ballistic Gun 6 | . . 7 Impact Weapon 4 | . . 4 Peak Build Rating 21 | . 4 21 Average Rating 9 | . . 11 On Entrance 1 | . . 4 Naked Turns 52 | . 52 . Heaviest Build 15 | . 3 15 Greatest Support 14 | 3 4 14 Greatest Overweight (x) 4 | . . 4 Average Overweight (x) . | . . . Largest Inventory Capacity 5 | 5 5 5 Average Capacity 5 | 5 5 5 Most Carried 5 | 4 4 5 Average Carried 4 | 3 4 4 Final Capacity 5 | 5 5 5 Final Carried 4 | 4 4 3 Class Distribution -------------------- 100% | Mutant Dominant Class ---------------- Mutant | -10/Materials Mutant | -9/Materials Resources | -11 -10 -9 ----------- Run | Yrd Mat Mat Matter Collected 483 | 200 8 275 Remotely . | . . . Salvage Created 619 | . . 619 Parts 34 | . . 34 Haulers Intercepted . | . . . Recyclers Shooed . | . . . Parts Field Recycled . | . . . Retrieved Matter . | . . . Parts Self-Destructed . | . . . Prevented . | . . . Kills | -11 -10 -9 ------- Run | Yrd Mat Mat Combat Hostiles Destroyed 15 | . . 15 Melee 1 | . . 1 Guns 10 | . . 10 AOE 1 | . . 1 Classes Destroyed 7 | . . 7 Builder 1 | . . 1 Tunneler 1 | . . 1 Operator 1 | . . 1 Watcher 2 | . . 2 Swarmer 4 | . . 4 Grunt 6 | . . 6 Sentry 5 | . . 5 Best Kill Streak 4 | . . 4 Combat Bots Only 4 | . . 4 Max Kills in Single Turn 1 | . . 1 Gunslinging . | . . . Exploded 1 | . . 1 Melee 1 | . . 1 Uniques/NPCs Destroyed . | . . . Combat | -11 -10 -9 -------- Run | Yrd Mat Mat Hostile Shots Fired 154 | . 3 151 Missed 51 | . 1 50 Hits 103 | . 2 101 Projectile 103 | . 2 101 Critical Strikes 2 | . . 2 Damage Taken 1566 | . 25 1541 Core 440 | . 14 426 Absorbed by Shields . | . . . Core Remaining (%) 97 | 100 94 . Volleys Fired 53 | . . 53 Largest 2 | . . 2 Hottest 40 | . . 40 Shots Fired 82 | . . 82 Gun 82 | . . 82 Cannon . | . . . Launcher . | . . . Special . | . . . Kinetic 72 | . . 72 Thermal 10 | . . 10 Explosive . | . . . Electromagnetic . | . . . Robot Hit Streak 16 | . . 16 Robot Miss Streak 4 | . . 4 Penetration Max . | . . . Secondary Targets . | . . . Shots Hit Robots 76 | . . 76 Core Hits 23 | . 1 22 Critical Kills . | . . . Critical Parts Destroyed 4 | . . 4 Critical Strikes 4 | . . 4 Destroy 1 | . . 1 Smash 3 | . . 3 Melee Attacks 28 | . . 28 Impact 28 | . . 28 Slashing . | . . . Piercing . | . . . Sneak Attacks 2 | . . 2 Combat Hostiles . | . . . Follow-up Attacks . | . . . Damage Inflicted 1315 | . 4 1311 Guns 512 | . . 512 Cannons . | . . . Explosions 98 | . . 98 Melee 701 | . . 701 Ramming 4 | . 4 . Kinetic 419 | . . 419 Thermal 93 | . . 93 Explosive 98 | . . 98 Electromagnetic . | . . . Impact 701 | . . 701 Slashing . | . . . Piercing . | . . . Highest Corruption . | . . . Average Corruption . | . . . Corruption Purged . | . . . Corruption Blocked . | . . . Overload Shots . | . . . Overflow Damage 287 | . . 287 Projectiles . | . . . Explosions 12 | . . 12 Melee 275 | . . 275 Knockbacks 2 | . . 2 Impact 2 | . . 2 Kinetic . | . . . Secondary . | . . . Self-Inflicted Damage 215 | . 1 214 Shots 2 | . . 2 Rammed 2 | . 2 . Targets Rammed 2 | . 2 . Kicked . | . . . Crushed . | . . . Highest Temperature 20 | . . 20 Average Temperature 6 | . . 6 Received Heat Transfer 576 | . 15 561 Siege Activations . | . . . Martial Activations . | . . . Shielding Activations . | . . . Robots Disrupted . | . . . Combat Hostiles . | . . . Robots Corrupted 6 | . . 6 Combat Hostiles 3 | . . 3 Parts Fried 7 | . . 7 Impact Corruptions 14 | . . 14 Robots Melted . | . . . Combat Hostiles . | . . . Parts Melted 1 | . . 1 Heat Transferred 225 | . . 225 Parts Sabotaged . | . . . Parts Stolen . | . . . Parts Stripped . | . . . Power Chain Reactions . | . . . Alert | -11 -10 -9 ------- Run | Yrd Mat Mat Maximum Alert Level . | . . . Low Security (%) 100 | 100 100 100 Level 1 . | . . . Level 2 . | . . . Level 3 . | . . . Level 4 . | . . . Level 5 . | . . . High Security . | . . . Max Security . | . . . Peak Influence 191 | . 15 191 Initial 5 | . . 5 Average 107 | . 3 129 Influence Increases 682 | . 34 648 Destroy 0b10 Robot/C 300 | . . 300 Destroy 0b10 Robot/NC 25 | . . 25 Destroy Leader 94 | . . 94 Successful Hack 16 | . 4 12 Disable Machine 90 | . . 90 Destroy Structure 22 | . . 22 Partial Spotted 60 | . 15 45 Lose Combat Pursuer 75 | . 15 60 Influence Decreases 439 | . 19 420 Entered New Map 10 | . . 10 Time Decay 289 | . 19 270 Lost Part 140 | . . 140 Squads Dispatched 3 | . . 3 Investigation 2 | . . 2 Extermination . | . . . Reinforcement 1 | . . 1 Assault . | . . . Garrison . | . . . Intercept . | . . . Searches Triggered . | . . . Construction Impeded . | . . . Haulers Reinforced . | . . . Active Scanning Responses . | . . . Cargo Convoy Interrupts . | . . . Stealth | -11 -10 -9 --------- Run | Yrd Mat Mat Distress Signals 1 | . . 1 Communications Jammed . | . . . Distress Signals . | . . . Times Spotted 30 | . 3 27 Peak Tracking Total 5 | . 2 5 Tactical Retreats 3 | . 1 2 Traps | -11 -10 -9 ------- Run | Yrd Mat Mat Traps Triggered 2 | . . 2 Indirectly . | . . . Trap Hack Attempts . | . . . Triggered . | . . . Disarmed . | . . . Reprogrammed . | . . . Reused . | . . . Traps Extracted . | . . . Installed . | . . . Triggered . | . . . Machines | -11 -10 -9 ---------- Run | Yrd Mat Mat Machines Disabled 6 | . . 6 Max in Single Turn 2 | . . 2 Machines Repaired . | . . . Machines Dismantled . | . . . Machines Sabotaged . | . . . Overloaded Fab Kills . | . . . Hacking | -11 -10 -9 --------- Run | Yrd Mat Mat Machines Accessed 10 | . 1 9 Terminals 9 | . 1 8 Fabricators . | . . . Repair Stations . | . . . Recycling Units . | . . . Scanalyzers 1 | . . 1 Garrison Access . | . . . Total Hacks 21 | . 1 20 Successful 11 | . 1 10 Failed 10 | . . 10 Catastrophic 2 | . . 2 Database Lockouts . | . . . Manual 19 | . 1 18 Terminals 19 | . 1 18 Fabricators . | . . . Repair Stations . | . . . Recycling Units . | . . . Scanalyzers 2 | . . 2 Garrison Access . | . . . Terminal Hacks . | . . . Fabricator Hacks . | . . . Repair Station Hacks . | . . . Recycling Unit Hacks . | . . . Scanalyzer 2 | . . 2 Insert Component 1 | . . 1 Analyze 1 | . . 1 Garrison Access Hacks . | . . . Unauthorized Hacks 9 | . 1 8 Terminals 9 | . 1 8 Skim 9 | . 1 8 Fabricators . | . . . Repair Stations . | . . . Recycling Units . | . . . Scanalyzers . | . . . Garrison Access . | . . . Data Cores Recovered . | . . . Used . | . . . Hacking Detections 5 | . . 5 Full Trace Events 3 | . . 3 Feedback Events . | . . . Feedback Blocked . | . . . Robot Schematics Acquired . | . . . Robots Built . | . . . Authchips . | . . . Time . | . . . Total Robot Build Rating . | . . . Part Schematics Acquired 1 | . . 1 Parts Built . | . . . Authchips . | . . . Time . | . . . Total Part Build Rating . | . . . Parts Repaired . | . . . Time . | . . . Parts Recycled . | . . . Recycled Matter . | . . . Retrieved Matter . | . . . Retrieved Components . | . . . Parts Scanalyzed 1 | . . 1 Part Schematics Acquired 1 | . . 1 Parts Damaged . | . . . Bothacking | -11 -10 -9 ------------ Run | Yrd Mat Mat Used RIF Installer . | . . . Robots Hacked . | . . . Non-combat . | . . . Combat . | . . . Robot Hacks Applied . | . . . Relay Couplers Released . | . . . Fabnet Peak Effective % . | . . . Robots Rewired . | . . . Allies Hacked . | . . . Hacks Repelled . | . . . Allies | -11 -10 -9 -------- Run | Yrd Mat Mat Total Allies . | . . . Largest Group . | . . . Highest-Rated Group . | . . . Highest-Rated Ally . | . . . Total Orders . | . . . Ally Attacks . | . . . Total Damage . | . . . Kills . | . . . Allies Corrupted . | . . . Allies Melted . | . . . Intel | -11 -10 -9 ------- Run | Yrd Mat Mat Active Infowar (turns) 602 | . 3 599 Optics 602 | . 3 599 ECM 2 | . . 2 Robot Analysis Total . | . . . Derelict Logs Recovered . | . . . Drone Launches . | . . . Drone Recoveries . | . . . Exploration | -11 -10 -9 ------------- Run | Yrd Mat Mat Turns Passed 727 | 38 90 599 Spaces Moved 742 | 61 171 510 Core 226 | 61 145 20 Treads . | . . . Legs . | . . . Wheels . | . . . Hover 142 | . . 142 Flight 374 | . 26 348 Fastest Speed 37 | 50 40 37 Average Speed 58 | 50 48 62 Slowest Speed 250 | 50 50 250 Overloaded Moves . | . . . Propulsion Burnouts . | . . . Robots Hopped 1 | . . 1 Potential Cave-ins . | . . . Cave-ins Triggered . | . . . Exploration Rate (%) 27 | 4 33 44 Regions Visited 2 Branch Regions . Pre-discovered Areas . | . . . Known Exits Taken . | . . . Unknown Exits Taken 2 | 1 1 . Scrap Searched . | . . . Spaces Dug . | . . . Terrain Destroyed 26 | . . 26 Melee . | . . . Projectile . | . . . AOE 26 | . . 26 Terrain Rammed . | . . . Walls Destroyed . | . . . Machines Disabled . | . . . Actions | -11 -10 -9 --------- Run | Yrd Mat Mat Total 909 | 68 175 666 Wait 35 | . . 35 Move 738 | 60 170 508 Hop 1 | . . 1 Pick Up 9 | 6 . 3 Fast Attach 20 | . 3 17 Attach 9 | . . 9 Detach 6 | . . 6 Swap 1 | . . 1 Drop 7 | 2 . 5 Fire 53 | . . 53 Melee 28 | . . 28 Ram 2 | . 2 . Kick . | . . . Crush . | . . . Escape Stasis . | . . . Rewire . | . . . Trap . | . . . Miscellaneous . | . . . Route ------- -11/Scrapyard -10/Materials -9/Materials (discovered 1 exit: [*Mat]) History --------- Turn | Location | Event 3 | -11/Scrapyard | Discovered new exit (range 16) 39 | -11/Scrapyard | Entered Materials 105 | -10/Materials | Discovered new exit (range 16) 129 | -10/Materials | Entered another Materials area 129 | -9/Materials | Evolved 2 slots: Utility x2 204 | -9/Materials | Discovered new exit (range 12) 336 | -9/Materials | Build established: Mutant 390 | -9/Materials | Core integrity fell below 50% 406 | -9/Materials | Lost 5 parts (1p2n2w) 619 | -9/Materials | Core integrity fell below 20% 655 | -9/Materials | Lost 3 parts (1p2n) 728 | -9/Materials | Destroyed self via exploding Nuclear Reactor Last Messages --------------- effect. 00699_ O-16 Technician destroyed. 00701_ K-01 Serf collects debris. 00704_ Terminal disabled. 00706_ K-01 Serf collects debris. 00718_ Destroyed Heat Sink. 00718_ Y-45 Defender system corrupted by crushing effect. 00719_ Y-45 Defender system terminally corrupted. 00719_ Heat Sink fried. 00719_ Beam Rifle fried. 00728_ Nuclear Reactor explodes. 00728_ Lgt. Ion Engine destroyed. 00728_ Destroyed Lgt. Ion Engine. 00728_ Imp. Light Armor Plating destroyed. 00728_ Destroyed Imp. Light Armor Plating. 00728_ Nuclear Reactor explodes. 00728_ G-34 Mercenary destroyed. 00728_ Imp. Light Armor Plating destroyed. 00728_ Destroyed Imp. Light Armor Plating. Map ----- +----------------------------------------------------+ | ????# # #??# ??????????????????????? | | ##### # #??# ???????????????????????? | | # + #??# #???????????????????????? | | # ]]]%# #??# #???????????????????????? | | # ]] # #??# #???????????????????????? | | # # ]] # #### #???????????????????????? | | ??? # # #???????????????????????? | | ????# # +???????????????????????? | | ????######## ## #???????????????????????? | | ???????????########### #???????????????????????? | | ?????????????????????# #???????????????????????? | | ?????????????????????# #???????????????????????? | | ?????????????###?????# #####+########+####?????? | | ????????????? ????# ???? | | ????????????? ???# ???? | | ?????????????? ???# % ???? | | ??????????????? ??####+#############/###??????? | | ???????????????? < ??# % #???????????????????? | | ?????????????????u ?# ""#???????????????????? | | ?????????????????? ## "##??????????????????? | | ??????????????????? #??????????????????? | | ????????????????????# = #??????????????????? | | ????????????????????# % #??????????????????? | | ????????????????????# #??????????????????? | | #####???????????????# #??????????????????? | | #"""#???????????????# @ #??????????????????? | | #"T"######??????????# % #?????????? | | #??????????# #?????????? | | #??????????# #?????????? | | #??????????### # +?????????? | | #########????########?""" """ #?????????? | | ####+###+# #??????????????"" """ #?????????? | | # + *""" #???????????????" """???????????? | | # #### """ #???????????????? ??????????????? | | # #??# """ #???????????????????????????????? | | # #??# #???????????????????????????????? | | # #??#########???????????????????????????????? | | % # #??#######?????????????????????????????????? | | ### #### #?????????????????????????????????? | | %* #?????????????????????????????????? | | = " #?????????????????????????????????? | | #?????????????????????????????????? | | #### ##### #?????????????????????????????????? | | ?###+###### ##########?????????????????????????? | | ?# # # #?????????????????????????? | | ?# """"" # # """ "#?????????????????????????? | | ?# """"" + + """ T#?????????????????????????? | | ?# """"" # # """ "#?????????????????????????? | | ?# # # #?????????????????????????? | | ?# # # """ #?????????????????????????? | +----------------------------------------------------+ Best States ------------- Heat Dissipation 28 Energy Generation 10 Energy Capacity 250 Matter Stores 300 Matter Capacity 300 Sight Range 20 Terrain Scan Density 10 ECM Strength 1 Armor Coverage 300 Evasion (%) 62 Item Schematics ----------------- Imp. Hover Unit | -9/Materials | Scanalyzed Robot Schematics ------------------ None Fabricated ------------ Nothing Repaired ---------- Nothing Alien Tech Used ----------------- None Achievements -------------- None Challenges ------------ None Game ------ Seed NeutrinoFrostDrivehammer Manual? 0 Play Time 00:11:40 Cumulative 32.2 hours Start 2025.10.13 @ 23:38:25 End 2025.10.13 @ 23:44:58 Sessions 1 Manual Loads 0 Difficulty Rogue Special Mode None Game No. 127 Rogue 127 Adventurer 0 Explorer 0 Win Type - Total 0 Types 0/0/0/0/0/0/0/0/0/0 Lore% 11 Gallery% 31 Achievement% 28 Wizard Run 0 Options --------- Layout 1 ASCII 0 Keyboard 1 Movement Vi Keybinds 0 Fullscreen 1 Font 16/SmallcapsGlow Map View 55x38 Zoom Use 16% Tactical HUD 1 Map Filters NONE Filters NONE Steam 1 RUN: f1713857-03d0-41bc-863a-5830cc9a104f